fUST/lending_fUST_20250114
["ID","MTS","AMOUNT","RATE_DAILY","PERIOD"]
[348880768,1736849437342,-506.39063505,0.00021917,3]
[348880769,1736849437351,-512.79237088,0.00021917,3]
[348880770,1736849437361,-500.0,0.00021917,3]
[348880771,1736849437370,-500.0,0.00021917,3]
[348880772,1736849437379,-679.09,0.00021917,3]
[348880773,1736849437390,-527.2,0.00021917,3]
[348880774,1736849437399,-499.89099288,0.00021917,3]
[348880775,1736849437409,-500.0,0.00021917,3]
[348880776,1736849437419,-500.0,0.00021917,3]
[348880777,1736849437428,-526.48,0.00021917,3]
[348880778,1736849437438,-508.70126107,0.00021917,3]
[348880779,1736849437448,-500.0,0.00021917,3]
[348880780,1736849437457,-500.0,0.00021917,3]
[348880781,1736849437467,-1000.0,0.00021917,3]
[348880783,1736849437476,-500.0,0.00021917,3]
[348880784,1736849437486,-500.0,0.00021917,3]
[348880785,1736849437496,-500.0,0.00021917,3]
[348880786,1736849437505,-500.0,0.00021917,3]
[348880787,1736849437515,-500.0,0.00021917,3]
[348880788,1736849437525,-482.83713903,0.00021917,3]
[348880789,1736849437535,-500.0,0.00021917,3]
[348880790,1736849437545,-500.0,0.00021917,3]
[348880791,1736849437555,-500.0,0.00021917,3]
[348880792,1736849437564,-311.79570499,0.00021917,3]
[348880794,1736849437574,-500.0,0.00021917,3]
[348880796,1736849437584,-500.0,0.00021917,3]
[348880798,1736849437593,-500.0,0.00021917,3]
[348880800,1736849437603,-500.0,0.00021917,3]
[348880802,1736849437612,-500.0,0.00021917,3]
[348880804,1736849437621,-500.0,0.00021917,3]
[348880806,1736849437631,-500.0,0.00021917,3]
[348880808,1736849437641,-500.0,0.00021917,3]
[348880810,1736849437650,-500.0,0.00021917,3]
[348880811,1736849437660,-428.36658071,0.00021917,3]
[348880812,1736849437669,-500.0,0.00021917,3]
[348880814,1736849437679,-500.0,0.00021917,3]
[348880816,1736849437689,-500.0,0.00021917,3]
[348880817,1736849437699,-267.17074165,0.00021917,3]
[348880820,1736849437709,-500.0,0.00021917,3]
[348880822,1736849437721,-500.0,0.00021917,3]
[348880824,1736849437731,-500.0,0.00021917,3]
[348880826,1736849437740,-500.0,0.00021917,3]
[348880828,1736849437750,-234.02094247,0.00021917,3]
[348880830,1736849437760,-1657.58,0.00021917,3]
[348880832,1736849437771,-500.0,0.00021917,3]
[348880834,1736849437781,-1657.58,0.00021917,3]
[348880836,1736849437791,-1657.58,0.00021917,3]
[348880838,1736849437800,-1657.58,0.00021917,3]
[348880840,1736849437810,-500.0,0.00021917,3]
[348880842,1736849437819,-1657.58,0.00021917,3]
[348880844,1736849437829,-543.62745067,0.00021917,3]
[348880846,1736849437838,-500.0,0.00021917,3]
[348880848,1736849437847,-1657.58,0.00021917,3]
[348880850,1736849437857,-500.0,0.00021917,3]
[348880852,1736849437867,-1657.58,0.00021917,3]
[348880854,1736849437876,-1657.58,0.00021917,3]
[348880856,1736849437885,-1657.58,0.00021917,3]
[348880858,1736849437895,-500.0,0.00021917,3]
[348880860,1736849437905,-1657.58,0.00021917,3]
[348880862,1736849437914,-1657.58,0.00021917,3]
[348880864,1736849437924,-500.67705575,0.00021917,3]
[348880866,1736849437934,-1657.58,0.00021917,3]
[348880868,1736849437943,-151.0,0.00021917,2]
[348880870,1736849437953,-1657.58,0.00021917,3]
[348880872,1736849437963,-1657.58,0.00021917,3]
[348880874,1736849437972,-1657.58,0.00021917,3]
[348880876,1736849437981,-1657.58,0.00021917,3]
[348880879,1736849437991,-1657.58,0.00021917,3]
[348880881,1736849438001,-500.0,0.00021917,3]
[348880883,1736849438011,-404.8443493,0.00021917,3]
[348880885,1736849438023,-1657.58,0.00021917,3]
[348880887,1736849438035,-1657.58,0.00021917,3]
[348880889,1736849438044,-1657.58,0.00021917,3]
[348880891,1736849438054,-500.0,0.00021917,3]
[348880893,1736849438064,-1657.58,0.00021917,3]
[348880895,1736849438074,-500.88464733,0.00021917,3]
[348880897,1736849438083,-1657.58,0.00021917,3]
[348880899,1736849438092,-500.0,0.00021917,3]
[348880901,1736849438102,-1657.58,0.00021917,3]
[348880903,1736849438112,-1657.62042726,0.00021917,3]
[348880905,1736849438121,-500.9702886,0.00021917,3]
[348880907,1736849438131,-637.9,0.00021917,3]
[348880909,1736849438140,-500.0,0.00021917,3]
[348880911,1736849438151,-500.0,0.00021917,3]
[348880913,1736849438161,-500.0,0.00021917,3]
[348880915,1736849438171,-500.0,0.00021917,3]
[348880917,1736849438180,-500.0,0.00021917,3]
[348880919,1736849438189,-501.3148476,0.00021917,3]
[348880921,1736849438199,-500.0,0.00021917,3]
[348880923,1736849438209,-513.3,0.00021917,3]
[348880925,1736849438218,-504.67333872,0.00021917,3]
[348880927,1736849438228,-500.0,0.00021917,3]
[348880929,1736849438239,-500.0,0.00021917,3]
[348880931,1736849438248,-507.90136161,0.00021917,3]
[348880933,1736849438257,-500.0,0.00021917,3]
[348880935,1736849438267,-500.0,0.00021917,3]
[348880937,1736849438276,-500.0,0.00021917,3]
[348880939,1736849438286,-500.0,0.00021917,3]
[348880942,1736849438302,-665.74,0.00021917,3]
[348880945,1736849438316,-500.0,0.00021917,3]
[348880948,1736849438326,-500.0,0.00021917,3]
[348880951,1736849438336,-500.0,0.00021917,3]
[348880954,1736849438346,-500.0,0.00021917,3]
[348880957,1736849438356,-500.0,0.00021917,3]
[348880960,1736849438366,-566.86,0.00021917,3]
[348880962,1736849438375,-500.0,0.00021917,3]
[348880964,1736849438385,-500.0,0.00021917,3]
[348880965,1736849438394,-503.7931477,0.00021917,3]
[348880967,1736849438404,-535.09654076,0.00021917,3]
[348880969,1736849438414,-500.0,0.00021917,3]
[348880971,1736849438425,-594.09176665,0.00021917,3]
[348880973,1736849438435,-500.0,0.00021917,3]
[348880975,1736849438445,-500.0,0.00021917,3]
[348880977,1736849438455,-478.7312354,0.00021917,3]
[348880979,1736849438465,-500.0,0.00021917,3]
[348880981,1736849438474,-500.0,0.00021917,3]
[348880983,1736849438484,-151.0,0.00021917,2]
[348880986,1736849438494,-881.13,0.00021917,3]
[348880987,1736849438504,-500.0,0.00021917,3]
[348880990,1736849438513,-500.00000001,0.00021917,3]
[348880992,1736849438524,-837.31,0.00021917,3]
[348880994,1736849438534,-500.0,0.00021917,3]
[348880996,1736849438543,-500.0,0.00021917,3]
[348880998,1736849438553,-508.14067511,0.00021917,3]
[348881000,1736849438563,-500.0,0.00021917,3]
[348881002,1736849438573,-524.14,0.00021917,3]
[348881004,1736849438584,-500.0,0.00021917,3]
[348881006,1736849438594,-555.69598061,0.00021917,3]
[348881008,1736849438603,-500.0,0.00021917,3]
[348881010,1736849438613,-500.0,0.00021917,3]
[348881012,1736849438623,-960.37,0.00021917,3]
[348881014,1736849438632,-500.0,0.00021917,3]
[348881016,1736849438642,-500.0,0.00021917,3]
[348881018,1736849438652,-200.0,0.00021917,3]
[348881021,1736849438661,-151.0,0.00021917,2]
[348881023,1736849438671,-500.0,0.00021917,3]
[348881024,1736849438681,-500.0,0.00021917,3]
[348881025,1736849438690,-500.0,0.00021917,3]
[348881026,1736849438700,-681.97,0.00021917,3]
[348881028,1736849438710,-500.0,0.00021917,3]
[348881030,1736849438721,-414.94133826,0.00021917,3]
[348881032,1736849438730,-500.0,0.00021917,3]
[348881034,1736849438740,-1207.77,0.00021917,3]
[348881035,1736849438750,-504.74083501,0.00021917,3]
[348881037,1736849438759,-500.0,0.00021917,3]
[348881039,1736849438770,-507.29224938,0.00021917,3]
[348881040,1736849438780,-500.0,0.00021917,3]
[348881041,1736849438789,-500.0,0.00021917,3]
[348881042,1736849438799,-500.0,0.00021917,3]
[348881043,1736849438809,-513.12,0.00021917,3]
[348881044,1736849438819,-500.0,0.00021917,3]
[348881045,1736849438828,-500.0,0.00021917,3]
[348881046,1736849438838,-500.0,0.00021917,3]
[348881047,1736849438848,-941.88,0.00021917,3]
[348881048,1736849438857,-545.58,0.00021917,3]
[348881049,1736849438867,-500.0,0.00021917,3]
[348881050,1736849438877,-500.0,0.00021917,3]
[348881051,1736849438887,-500.0,0.00021917,3]
[348881052,1736849438898,-500.0,0.00021917,3]
[348881053,1736849438907,-500.0,0.00021917,3]
[348881054,1736849438917,-1141.18,0.00021917,3]
[348881055,1736849438926,-500.0,0.00021917,3]
[348881056,1736849438936,-694.71,0.00021917,3]
[348881057,1736849438946,-500.0,0.00021917,3]
[348881058,1736849438956,-500.0,0.00021917,3]
[348881059,1736849438965,-847.37,0.00021917,3]
[348881060,1736849438975,-500.0,0.00021917,3]
[348881061,1736849438985,-500.0,0.00021917,3]
[348881062,1736849438994,-500.0,0.00021917,3]
[348881063,1736849439003,-500.0,0.00021917,3]
[348881064,1736849439013,-503.2,0.00021917,3]
[348881065,1736849439024,-500.0,0.00021917,3]
[348881066,1736849439038,-500.0,0.00021917,3]
[348881067,1736849439047,-500.0,0.00021917,3]
[348881068,1736849439056,-500.0,0.00021917,3]
[348881069,1736849439066,-500.0,0.00021917,3]
[348881070,1736849439077,-946.37,0.00021917,3]
[348881071,1736849439086,-946.37,0.00021917,3]
[348881072,1736849439096,-946.37,0.00021917,3]
[348881073,1736849439106,-946.37,0.00021917,3]
[348881074,1736849439116,-946.37,0.00021917,3]
[348881075,1736849439126,-946.37,0.00021917,3]
[348881076,1736849439285,-946.37,0.00021917,3]
[348881077,1736849439295,-500.0,0.00021917,3]
[348881078,1736849439305,-500.0,0.00021917,3]
[348881079,1736849439315,-1000.6,0.00021917,3]
[348881080,1736849439324,-151.0,0.00021917,2]
[348881081,1736849439334,-500.98493413,0.00021917,3]
[348881082,1736849439343,-500.0,0.00021917,3]
[348881083,1736849439353,-946.37,0.00021917,3]
[348881084,1736849439362,-946.37,0.00021917,3]
[348881085,1736849439372,-946.37,0.00021917,3]
[348881086,1736849439381,-500.0,0.00021917,3]
[348881087,1736849439390,-946.37,0.00021917,3]
[348881088,1736849439400,-500.0,0.00021917,3]
[348881089,1736849439410,-946.37,0.00021917,3]
[348881091,1736849439420,-946.37,0.00021917,3]
[348881092,1736849439430,-500.0,0.00021917,3]
[348881093,1736849439439,-946.37,0.00021917,3]
[348881094,1736849439448,-946.37,0.00021917,3]
[348881095,1736849439459,-500.0,0.00021917,3]
[348881096,1736849439468,-500.0,0.00021917,3]
[348881097,1736849439477,-500.0,0.00021917,3]
[348881098,1736849439487,-946.37,0.00021917,3]
[348881099,1736849439496,-500.0,0.00021917,3]
[348881100,1736849439506,-500.0,0.00021917,3]
[348881101,1736849439515,-500.0,0.00021917,3]
[348881102,1736849439525,-500.0,0.00021917,3]
[348881103,1736849439535,-823.23,0.00021917,3]
[348881104,1736849439544,-500.0,0.00021917,3]
[348881105,1736849439554,-748.27,0.00021917,3]
[348881107,1736849439563,-500.0,0.00021917,3]
[348881109,1736849439572,-500.0,0.00021917,3]
[348881110,1736849439582,-845.79,0.00021917,3]
[348881111,1736849439593,-500.0,0.00021917,3]
[348881112,1736849439602,-500.0,0.00021917,3]
[348881113,1736849439611,-500.0,0.00021917,3]
[348881114,1736849439621,-500.0,0.00021917,3]
[348881115,1736849439631,-151.0,0.00021917,2]
[348881116,1736849439641,-500.0,0.00021917,3]
[348881117,1736849439650,-500.0,0.00021917,3]
[348881118,1736849439660,-500.0,0.00021917,3]
[348881119,1736849439670,-546.31,0.00021917,3]
[348881120,1736849439679,-151.0,0.00021917,2]
[348881121,1736849439688,-151.0,0.00021917,2]
[348881122,1736849439698,-500.0,0.00021917,3]
[348881123,1736849439707,-500.0,0.00021917,3]
[348881124,1736849439719,-236.15704356,0.00021917,3]
[348881125,1736849439728,-151.0,0.00021917,2]
[348881126,1736849439738,-512.75452373,0.00021917,3]
[348881127,1736849439747,-500.0,0.00021917,3]
[348881128,1736849439757,-500.0,0.00021917,3]
[348881129,1736849439768,-922.97,0.00021917,3]
[348881130,1736849439777,-500.0,0.00021917,3]
[348881131,1736849439786,-500.0,0.00021917,3]
[348881132,1736849439796,-500.0,0.00021917,3]
[348881133,1736849439805,-500.0,0.00021917,3]
[348881134,1736849439814,-500.0,0.00021917,3]
[348881135,1736849439823,-500.0,0.00021917,3]
[348881136,1736849439832,-500.0,0.00021917,3]
[348881137,1736849439841,-500.0,0.00021917,3]
[348881138,1736849439851,-500.0,0.00021917,3]
[348881139,1736849439860,-501.03184943,0.00021917,3]
[348881140,1736849439869,-500.0,0.00021917,3]
[348881141,1736849439878,-500.0,0.00021917,3]
[348881142,1736849439889,-500.0,0.00021917,3]
[348881143,1736849439898,-4034.71,0.00021917,3]
[348881144,1736849439907,-500.0,0.00021917,3]
[348881145,1736849439916,-500.0,0.00021917,3]
[348881146,1736849439926,-500.0,0.00021917,3]
[348881147,1736849439935,-500.0,0.00021917,3]
[348881148,1736849439943,-500.0,0.00021917,3]
[348881149,1736849439953,-500.0,0.00021917,3]
[348881150,1736849439963,-500.0,0.00021917,3]
[348881151,1736849439972,-500.0,0.00021917,3]
[348881152,1736849439982,-500.0,0.00021917,3]
[348881153,1736849439991,-500.0,0.00021917,3]
[348881154,1736849440001,-500.0,0.00021917,3]
[348881155,1736849440011,-500.0,0.00021917,3]
[348881156,1736849440022,-924.95,0.00021917,3]
[348881157,1736849440034,-500.0,0.00021917,3]
[348881158,1736849440044,-500.0,0.00021917,3]
[348881159,1736849440053,-505.31551177,0.00021917,3]
[348881160,1736849440063,-500.0,0.00021917,3]
[348881161,1736849440072,-791.4,0.00021917,3]
[348881162,1736849440082,-500.0,0.00021917,3]
[348881163,1736849440091,-500.0,0.00021917,3]
[348881164,1736849440100,-823.35,0.00021917,3]
[348881166,1736849440110,-500.0,0.00021917,3]
[348881167,1736849440119,-11608.99,0.00021917,3]
[348881168,1736849440128,-500.0,0.00021917,3]
[348881169,1736849440139,-500.0,0.00021917,3]
[348881170,1736849440148,-1459.35,0.00021917,3]
[348881171,1736849440159,-500.0,0.00021917,3]
[348881172,1736849440168,-500.0,0.00021917,3]
[348881173,1736849440178,-500.0,0.00021917,3]
[348881174,1736849440187,-500.0,0.00021917,3]
[348881175,1736849440196,-617.66,0.00021917,3]
[348881176,1736849440206,-500.0,0.00021917,3]
[348881177,1736849440216,-151.0,0.00021917,2]
[348881178,1736849440225,-500.0,0.00021917,3]
[348881179,1736849440235,-500.0,0.00021917,3]
[348881180,1736849440245,-500.0,0.00021917,3]
[348881181,1736849440254,-1129.18,0.00021917,3]
[348881182,1736849440264,-500.0,0.00021917,3]
[348881183,1736849440276,-613.42,0.00021917,3]
[348881184,1736849440285,-500.0,0.00021917,3]
[348881185,1736849440295,-500.0,0.00021917,3]
[348881186,1736849440304,-549.89,0.00021917,3]
[348881187,1736849440314,-505.66,0.00021917,3]
[348881188,1736849440323,-500.0,0.00021917,3]
[348881189,1736849440332,-500.0,0.00021917,3]
[348881190,1736849440342,-981.45,0.00021917,3]
[348881191,1736849440352,-500.0,0.00021917,3]
[348881192,1736849440361,-749.98,0.00021917,3]
[348881193,1736849440370,-500.0,0.00021917,3]
[348881194,1736849440380,-500.0,0.00021917,3]
[348881195,1736849440389,-500.0,0.00021917,3]
[348881196,1736849440399,-6428.41,0.00021917,3]
[348881197,1736849440408,-500.0,0.00021917,3]
[348881198,1736849440417,-500.0,0.00021917,3]
[348881200,1736849440427,-1290.22,0.00021917,3]
[348881202,1736849440436,-500.0,0.00021917,3]
[348881204,1736849440445,-638.56,0.00021917,3]
[348881205,1736849440454,-507.35195188,0.00021917,3]
[348881206,1736849440464,-500.0,0.00021917,3]
[348881207,1736849440473,-500.0,0.00021917,3]
[348881208,1736849440483,-529.79,0.00021917,3]
[348881209,1736849440492,-1107.14,0.00021917,3]
[348881210,1736849440502,-500.0,0.00021917,3]
[348881211,1736849440511,-1722.44,0.00021917,3]
[348881212,1736849440522,-1126.83,0.00021917,3]
[348881213,1736849440531,-1554.52,0.00021917,3]
[348881214,1736849440541,-500.0,0.00021917,3]
[348881215,1736849440551,-509.01865532,0.00021917,3]
[348881216,1736849440560,-538.76,0.00021917,3]
[348881217,1736849440570,-507.11,0.00021917,3]
[348881218,1736849440579,-1610.09,0.00021917,3]
[348881219,1736849440589,-500.0,0.00021917,3]
[348881220,1736849440598,-781.22,0.00021917,3]
[348881221,1736849440608,-151.0,0.00021917,2]
[348881222,1736849440617,-500.0,0.00021917,3]
[348881223,1736849440626,-713.86,0.00021917,3]
[348881224,1736849440635,-500.0,0.00021917,3]
[348881225,1736849440644,-561.07,0.00021917,3]
[348881226,1736849440654,-500.0,0.00021917,3]
[348881227,1736849440663,-577.43480196,0.00021917,3]
[348881228,1736849440672,-500.0,0.00021917,3]
[348881229,1736849440682,-261.01722424,0.00021917,3]
[348881230,1736849440692,-1039.23,0.00021917,3]
[348881231,1736849440701,-151.0,0.00021917,2]
[348881232,1736849440713,-500.0,0.00021917,3]
[348881233,1736849440723,-500.0,0.00021917,3]
[348881234,1736849440732,-500.0,0.00021917,3]
[348881235,1736849440742,-500.0,0.00021917,3]
[348881236,1736849440752,-500.0,0.00021917,3]
[348881237,1736849440761,-501.62925538,0.00021917,3]
[348881238,1736849440772,-500.0,0.00021917,3]
[348881239,1736849440781,-500.0,0.00021917,3]
[348881240,1736849440791,-500.0,0.00021917,3]
[348881241,1736849440801,-500.0,0.00021917,3]
[348881242,1736849440810,-500.0,0.00021917,3]
[348881243,1736849440820,-500.0,0.00021917,3]
[348881244,1736849440830,-500.0,0.00021917,3]
[348881245,1736849440839,-500.0,0.00021917,3]
[348881246,1736849440848,-307.41285043,0.00021917,3]
[348881247,1736849440857,-500.0,0.00021917,3]
[348881248,1736849440867,-1214.95,0.00021917,3]
[348881249,1736849440876,-518.68,0.00021917,3]
[348881250,1736849440885,-500.0,0.00021917,3]
[348881251,1736849440895,-500.0,0.00021917,3]
[348881252,1736849440904,-3864.15,0.00021917,3]
[348881253,1736849440914,-500.0,0.00021917,3]
[348881254,1736849440923,-1282.34,0.00021917,3]
[348881255,1736849440932,-500.0,0.00021917,3]
[348881256,1736849440942,-500.0,0.00021917,3]
[348881257,1736849440951,-500.0,0.00021917,3]
[348881258,1736849440960,-500.0,0.00021917,3]
[348881259,1736849440969,-30053.5,0.00021917,2]
[348881260,1736849440978,-505.04590078,0.00021917,3]
[348881261,1736849440988,-500.0,0.00021917,3]
[348881262,1736849440997,-727.64,0.00021917,3]
[348881263,1736849441007,-663.68,0.00021917,3]
[348881264,1736849441016,-500.0,0.00021917,3]
[348881265,1736849441026,-500.0,0.00021917,3]
[348881266,1736849441038,-42568.9,0.00021917,3]
[348881267,1736849441047,-4777.72,0.00021917,3]
[348881268,1736849441056,-500.0,0.00021917,3]
[348881269,1736849441066,-7343.48,0.00021917,2]
[348881270,1736849441078,-507.81,0.00021917,3]
[348881271,1736849441088,-1054.02,0.00021917,3]
[348881272,1736849441098,-500.0,0.00021917,3]
[348881273,1736849441108,-500.0,0.00021917,3]
[348881274,1736849441118,-500.0,0.00021917,3]
[348881275,1736849441128,-1119.26,0.00021917,3]
[348881276,1736849441138,-1985.82,0.00021917,3]
[348881277,1736849441147,-500.0,0.00021917,3]
[348881278,1736849441157,-500.0,0.00021917,3]
[348881279,1736849441166,-500.0,0.00021917,3]
[348881280,1736849441176,-500.0,0.00021917,3]
[348881281,1736849441185,-500.0,0.00021917,3]
[348881282,1736849441194,-500.0,0.00021917,3]
[348881283,1736849441204,-500.0,0.00021917,3]
[348881284,1736849441213,-500.0,0.00021917,3]
[348881285,1736849441223,-500.0,0.00021917,3]
[348881286,1736849441233,-6443.22,0.00021917,3]
[348881287,1736849441242,-1519.83,0.00021917,3]
[348881288,1736849441252,-2343.15,0.00021917,3]
[348881289,1736849441261,-500.0,0.00021917,3]
[348881290,1736849441271,-524.0,0.00021917,3]
[348881291,1736849441281,-500.0,0.00021917,3]
[348881292,1736849441290,-500.0,0.00021917,3]
[348881293,1736849441300,-500.0,0.00021917,3]
[348881294,1736849441310,-500.0,0.00021917,3]
[348881295,1736849441319,-504.08020048,0.00021917,3]
[348881296,1736849441329,-500.0,0.00021917,3]
[348881297,1736849441338,-500.0,0.00021917,3]
[348881298,1736849441348,-500.0,0.00021917,3]
[348881299,1736849441358,-500.0,0.00021917,3]
[348881300,1736849441367,-500.0,0.00021917,3]
[348881301,1736849441378,-2438.72,0.00021917,3]
[348881302,1736849441387,-500.0,0.00021917,3]
[348881303,1736849441397,-500.0,0.00021917,3]
[348881304,1736849441407,-500.0,0.00021917,3]
[348881305,1736849441416,-709.22,0.00021917,3]
[348881306,1736849441425,-615.32,0.00021917,3]
[348881307,1736849441435,-500.0,0.00021917,3]
[348881308,1736849441445,-564.04,0.00021917,3]
[348881309,1736849441455,-1280.39,0.00021917,3]
[348881310,1736849441465,-500.0,0.00021917,3]
[348881311,1736849441474,-500.0,0.00021917,3]
[348881312,1736849441484,-511.89,0.00021917,3]
[348881313,1736849441493,-713.0,0.00021917,3]
[348881314,1736849441503,-2017.33,0.00021917,3]
[348881315,1736849441513,-500.0,0.00021917,3]
[348881316,1736849441523,-500.0,0.00021917,3]
[348881317,1736849441533,-500.0,0.00021917,3]
[348881318,1736849441542,-500.0,0.00021917,3]
[348881319,1736849441553,-500.0,0.00021917,3]
[348881320,1736849441563,-500.0,0.00021917,3]
[348881321,1736849441573,-500.0,0.00021917,3]
[348881322,1736849441699,-603.36,0.00021917,3]
[348881323,1736849441710,-500.0,0.00021917,3]
[348881324,1736849441721,-539.49,0.00021917,3]
[348881325,1736849441731,-500.0,0.00021917,3]
[348881326,1736849441741,-500.0,0.00021917,3]
[348881327,1736849441751,-989.17,0.00021917,3]
[348881328,1736849441760,-500.0,0.00021917,3]
[348881329,1736849441770,-521.97,0.00021917,3]
[348881330,1736849441780,-500.0,0.00021917,3]
[348881331,1736849441790,-500.0,0.00021917,3]
[348881332,1736849441800,-500.0,0.00021917,3]
[348881333,1736849441810,-500.0,0.00021917,3]
[348881334,1736849441819,-2208.82,0.00021917,3]
[348881335,1736849441828,-500.0,0.00021917,3]
[348881336,1736849441838,-513.16383171,0.00021917,3]
[348881337,1736849441847,-500.0,0.00021917,3]
[348881338,1736849441857,-500.0,0.00021917,3]
[348881339,1736849441866,-500.0,0.00021917,3]
[348881340,1736849441875,-402.54454551,0.00021917,3]
[348881341,1736849441885,-500.0,0.00021917,3]
[348881342,1736849441895,-4571.34,0.00021917,3]
[348881343,1736849441907,-500.0,0.00021917,3]
[348881344,1736849441916,-1000.0,0.00021917,2]
[348881345,1736849441925,-500.0,0.00021917,3]
[348881346,1736849441934,-500.0,0.00021917,3]
[348881347,1736849441944,-636.75,0.00021917,3]
[348881348,1736849441954,-1000.0,0.00021917,7]
[348881349,1736849441963,-500.0,0.00021917,3]
[348881350,1736849441973,-500.0,0.00021917,3]
[348881351,1736849441983,-500.0,0.00021917,3]
[348881352,1736849441993,-1024.6,0.00021917,3]
[348881353,1736849442002,-509.26,0.00021917,3]
[348881354,1736849442012,-500.0,0.00021917,3]
[348881355,1736849442023,-582.08,0.00021917,3]
[348881356,1736849442035,-152.11142175,0.00021917,3]
[348881357,1736849442044,-486.37164515,0.00021917,3]
[348881358,1736849442054,-500.0,0.00021917,3]
[348881359,1736849442064,-2076.42,0.00021917,3]
[348881360,1736849442073,-552.55338736,0.00021917,3]
[348881361,1736849442083,-500.0,0.00021917,3]
[348881362,1736849442092,-500.0,0.00021917,3]
[348881363,1736849442102,-500.0,0.00021917,3]
[348881364,1736849442111,-500.0,0.00021917,3]
[348881365,1736849442122,-500.0,0.00021917,3]
[348881366,1736849442132,-500.0,0.00021917,3]
[348881367,1736849442142,-500.0,0.00021917,3]
[348881368,1736849442151,-500.0,0.00021917,3]
[348881369,1736849442161,-500.0,0.00021917,3]
[348881370,1736849442171,-500.0,0.00021917,3]
[348881371,1736849442180,-1776.51,0.00021917,3]
[348881372,1736849442190,-500.0,0.00021917,3]
[348881373,1736849442199,-4094.02,0.00021917,3]
[348881374,1736849442209,-500.0,0.00021917,3]
[348881375,1736849442219,-1716.48,0.00021917,3]
[348881376,1736849442228,-500.0,0.00021917,3]
[348881377,1736849442237,-500.0,0.00021917,3]
[348881378,1736849442247,-647.66,0.00021917,3]
[348881379,1736849442256,-151.0,0.00021917,2]
[348881380,1736849442265,-500.0,0.00021917,3]
[348881381,1736849442276,-500.0,0.00021917,3]
[348881382,1736849442285,-500.0,0.00021917,3]
[348881383,1736849442295,-1945.66,0.00021917,3]
[348881384,1736849442304,-10147.7,0.00021917,3]
[348881385,1736849442314,-2291.89,0.00021917,3]
[348881386,1736849442324,-1128.95,0.00021917,3]
[348881387,1736849442334,-500.0,0.00021917,3]
[348881388,1736849442343,-500.0,0.00021917,3]
[348881389,1736849442353,-500.0,0.00021917,3]
[348881390,1736849442363,-514.01501,0.00021917,3]
[348881391,1736849442372,-163.2589871,0.00021954,2]
[348881392,1736849442382,-500.0,0.00021973,2]
[348881393,1736849442391,-923.77502375,0.00021989,2]
[348881394,1736849442401,-188.5,0.00022,2]
[348881395,1736849442411,-151.0,0.00022,7]
[348881396,1736849442420,-199.213159,0.00022,7]
[348881397,1736849442429,-199.213159,0.00022,7]
[348881398,1736849442440,-151.0,0.00022,9]
[348881400,1736849442449,-151.0,0.00022,6]
[348881402,1736849442458,-151.0,0.00022,7]